[Event "GCT Superbet Rapid Poland 2025"]
[Site "Warsaw"]
[Date "2025.04.26"]
[Round "1.1"]
[White "Fedoseev, Vladimir"]
[Black "Firouzja, Alireza"]
[Result "1/2-1/2"]
[Annotator "TA"]
[ECO "E06"]
[WhiteElo "2739"]
[BlackElo "2757"]
[PlyCount "158"]
[EventDate "2025.04.23"]
[EventType "tourn"]
[EventCountry "POL"]
[SourceTitle "playchess.com"]
[Source "ChessBase"]
[SourceQuality "1"]
[TimeControl "1500+10"]

{[%evp 12,158,7,7,9,3,1,6,14,14,17,0,3,7,23,-4,11,12,20,11,29,0,16,20,23,22,102,101,89,93,157,160,144,152,190,205,190,182,193,164,183,190,205,214,191,172,179,166,172,170,159,126,121,119,135,124,133,105,166,152,176,169,168,158,167,150,154,150,183,148,155,151,140,138,245,248,244,244,248,258,237,244,278,171,191,177,144,79,84,87,263,201,243,249,243,239,206,213,265,259,243,234,260,235,202,18,18,8,17,15,355,325,504,68,77,75,593,593,648,578,564,565,1191,1126,746,1122,729,729,993,1029,714,8,8,8,8,0,8,0,0,0,0,0,0,0,0,0,0,0,0]} 1. d4 {[%emt 0:00:02]} Nf6 {[%emt 0:00:02]} 2. c4 {[%emt 0:00:02]} e6 {[%emt 0:00:00]} 3. Nf3 {[%emt 0:00:03]} d5 {[%emt 0:00:02]} 4. g3 {[%emt 0:00:03]} Be7 {[%emt 0:00:16]} 5. Bg2 {[%emt 0:00:03]} O-O {[%emt 0:00:02]} 6. Nc3 {[%emt 0:00:02]} Nbd7 {[%emt 0:00:23]} 7. Qd3 {[%emt 0:00:07]} b6 {[%emt 0:00:11] E06: Closed Catalan: Early deviations.} 8. cxd5 {[%emt 0:00:09]} Nxd5 {[%emt 0:00:06]} 9. O-O {[%emt 0:00:04]} Bb7 {[%emt 0:00:16]} 10. Rd1 {[%emt 0:00:09]} c5 {[%emt 0:01:10] 10...c5 is the modern continuation.} 11. Nxd5 {[%emt 0:01:17]} exd5 {[%emt 0:00:07]} 12. dxc5 {[%emt 0:01:11]} bxc5 {[%emt 0:01:48]} 13. Bf4 {[%emt 0:00:13]} Qb6 $146 {[%emt 0:01:49][%cal Oe7f6]} (13... Re8 14. b3 a5 15. Rac1 a4 16. Ne1 Nf6 17. Bg5 axb3 18. Qxb3 Rb8 19. Bxf6 Bxf6 20. Bxd5 Bxd5 21. Qxd5 Qxd5 22. Rxd5 Rxe2 23. Rdxc5 {0-1 Firouzja,A (2702)-Aronian,L (2758) chess.com Speed blitz 2019 (1.10)}) 14. Qb3 {[%emt 0:02:22]} Nf6 {[%emt 0:00:27]} 15. Ne5 {[%emt 0:00:32][%cal Oe5c4]} Rfe8 {[%emt 0:00:22]} 16. Bf3 {[%emt 0:01:11][%cal Oe5c4]} Bf8 {[%emt 0:02:01] [#]} 17. Nc4 $1 {[%emt 0:02:21]} Qa6 {[%emt 0:11:33][%cal Ob7c6]} 18. Ne3 {[%emt 0:03:41]} c4 {[%emt 0:04:04] [#]} (18... Rad8 $11) 19. Nxc4 $1 $16 {[%emt 0:01:35][%csl Oa7,Od5][%mdl 512] Black has weak pawns} Bc6 {[%emt 0:00:02][%cal Oc6a4]} 20. Ne3 {[%emt 0:00:16][%cal Re3d5]} Ba4 {[%emt 0:00:24]} (20... Rad8 $142) 21. Qd3 $1 {[%emt 0:00:03]} Bb5 {[%emt 0:00:06]} 22. Qd2 {[%emt 0:02:44]} Rad8 {[%emt 0:00:21]} 23. a4 $1 {[%emt 0:00:34]} (23. Bxd5 Bc5 24. a4 Bxe2 $17) (23. Nxd5 $6 Nxd5 24. Bxd5 Bxe2 $14 (24... Rxe2 $2 25. Bxf7+ Kxf7 26. Qxd8 $18) (24... Bc6 $2 25. e4 $18)) 23... Bc4 {[%emt 0:02:36]} 24. Nxc4 {[%emt 0:02:36]} Qxc4 {[%emt 0:00:02]} 25. Qd3 {[%emt 0:01:35]} Qb4 {[%emt 0:00:18]} 26. Qb5 {[%emt 0:00:06]} h6 {[%emt 0:00:17]} 27. Qxb4 {[%emt 0:01:03]} (27. Bxd5 $2 Qxb5 28. Bxf7+ Kxf7 $19) 27... Bxb4 {[%emt 0:00:01]} 28. a5 {[%emt 0:00:03]} Rc8 {[%emt 0:00:18]} 29. Rd3 {[%emt 0:01:05]} (29. Bxd5 Nxd5 30. Rxd5 Rxe2 $11) 29... g5 {[%emt 0:00:23]} 30. Be3 {[%emt 0:00:22] A strong pair of Bishops.} Bc5 {[%emt 0:00:02]} 31. Bd4 {[%emt 0:01:01]} (31. Bxd5 $6 Bxe3 32. fxe3 Nxd5 33. Rxd5 Rxe3 $14) 31... Bxd4 {[%emt 0:00:12]} 32. Rxd4 {[%emt 0:00:01]} Rc2 {[%emt 0:00:34]} 33. b4 {[%emt 0:00:07]} (33. Bxd5 $6 Rexe2 34. Rf1 Rxb2 $11) 33... Rb8 {[%emt 0:00:07]} 34. Rb1 {[%emt 0:01:24]} Ra2 {[%emt 0:00:15]} (34... Rc5 $16) 35. Rc1 $18 {[%emt 0:00:16][%cal Oc1c7]} Rb2 {[%emt 0:00:10]} 36. Bxd5 {[%emt 0:00:44]} R2xb4 {[%emt 0:00:10]} 37. Rxb4 {[%emt 0:00:31]} Rxb4 {[%emt 0:00:01][%mdl 4096] Endgame KRB-KRN. White is a pawn up.} 38. Rc8+ {[%emt 0:00:03]} Kg7 {[%emt 0:00:03]} 39. Bc4 {[%emt 0:00:21]} Rb1+ {[%emt 0:00:14]} 40. Kg2 {[%emt 0:00:03]} Rc1 {[%emt 0:00:01]} 41. Kf3 {[%emt 0:00:11] Prevents Ne4} Rc3+ {[%emt 0:00:16]} 42. e3 {[%emt 0:00:04]} g4+ {[%emt 0:00:24]} (42... h5 $16 43. Rc7 g4+ 44. Ke2 Ne4) 43. Kf4 {[%emt 0:00:35]} Rc2 {[%emt 0:00:04]} 44. Ke5 {[%emt 0:00:01]} Nd7+ {[%emt 0:00:17]} 45. Kd4 $1 {[%emt 0:00:30]} (45. Kd6 $6 Rd2+ 46. Kc7 Ne5 $14) 45... Rd2+ {[%emt 0:00:09]} 46. Kc3 {[%emt 0:00:35]} Rxf2 {[%emt 0:00:09][%cal Od7e5]} 47. Rc7 {[%emt 0:00:04]} Ne5 {[%emt 0:00:01]} 48. Bd5 {[%emt 0:00:04]} (48. Rxa7 Nxc4 49. Kxc4 Rxh2 $11) 48... a6 {[%emt 0:00:16][%cal Of2f1]} 49. Re7 {[%emt 0:00:11]} (49. Ra7 $142) 49... Rf5 $16 {[%emt 0:00:16]} 50. e4 {[%emt 0:00:21] White has more active pieces.} Rg5 {[%emt 0:00:10]} (50... Rh5 $16 51. Kb4 Kf8) 51. Ra7 {[%emt 0:00:14]} Rg6 {[%emt 0:00:10]} 52. Bb7 $1 {[%emt 0:00:02]} Rd6 {[%emt 0:00:10] ...Rd7 would now be deadly.} 53. Rxa6 {[%emt 0:00:05]} (53. Bxa6 Nc6 54. e5 Rg6 $15) 53... Rd3+ {[%emt 0:00:01]} 54. Kb4 {[%emt 0:00:23]} Rd2 {[%emt 0:00:01]} 55. Bd5 {[%emt 0:00:12]} Rxh2 {[%emt 0:00:02]} 56. Rd6 $1 {[%emt 0:00:23]} Rh1 {[%emt 0:00:09]} 57. a6 {[%emt 0:00:10]} Ra1 {[%emt 0:00:02]} 58. Bb3 $2 {[%emt 0:00:01]} (58. Bb7 $18) 58... h5 $11 {[%emt 0:00:36][%cal Oh5h4]} 59. Ba4 {[%emt 0:00:06]} Rb1+ {[%emt 0:00:08]} 60. Kc5 {[%emt 0:00:26]} Rb8 $2 {[%emt 0:00:17][%mdl 8192]} (60... Rc1+ $11 {and Black has nothing to worry.} 61. Kb4 h4) 61. Rd5 $18 {[%emt 0:00:05]} Kf6 {[%emt 0:00:12]} (61... f6 {might work better.} 62. Bb5 h4) 62. Bc6 $2 {[%emt 0:00:10]} (62. Rd6+ Kg7 63. Rd5 f6 $18) (62. a7 $18 Rg8 63. Bb5) 62... Rc8 $14 {[%emt 0:00:11]} 63. Rd6+ {[%emt 0:00:10]} Ke7 $2 {[%emt 0:00:01][%mdl 8192]} (63... Kg5 $16 {stays breathing.}) 64. a7 $18 {[%emt 0:00:02]} h4 {[%emt 0:00:21]} 65. a8=Q {[%emt 0:00:15]} ({Not} 65. a8=B hxg3 66. Rd2 Rh8 $11) 65... Rxa8 {[%emt 0:00:02]} 66. Bxa8 {[%emt 0:00:01]} hxg3 {[%emt 0:00:04] [#]} 67. Rd2 $1 {[%emt 0:00:02]} Kf6 {[%emt 0:00:09]} 68. Rg2 {[%emt 0:00:42]} Kg5 {[%emt 0:00:09]} 69. Rxg3 {[%emt 0:00:04]} Kf4 {[%emt 0:00:02]} 70. Rg1 {[%emt 0:00:03]} g3 {[%emt 0:00:06] [#]} 71. Bd5 $2 {[%emt 0:00:08]} (71. Kd6 $1 $18 {White threatens Rf1+ and mate.} f6 72. Ke7) 71... Nf3 $11 {[%emt 0:00:18] The position is equal.} 72. Rg2 {[%emt 0:00:12]} (72. Rxg3 Kxg3 73. Bxf7 Kf4 74. Kd5) 72... Nh4 $1 {[%emt 0:00:12]} 73. Rg1 {[%emt 0:00:16]} (73. Rxg3 Kxg3 74. Bxf7 Nf3 75. Kd5) 73... Nf3 {[%emt 0:00:05]} 74. Rc1 {[%emt 0:00:19][%cal Oe4e5] Strongly threatening e5!.} (74. Rxg3 {simplifies} Kxg3 75. Bxf7 Kf4 76. Kd5) 74... g2 {[%emt 0:00:06]} 75. e5 {[%emt 0:00:05]} g1=Q+ {[%emt 0:00:12]} 76. Rxg1 {[%emt 0:00:02]} Nxg1 {[%emt 0:00:01]} 77. Kd6 {[%emt 0:00:01]} Nf3 {[%emt 0:00:05]} 78. Bxf3 {[%emt 0:00:05]} Kxf3 {[%emt 0:00:01]} 79. e6 {[%emt 0:00:00]} fxe6 {[%emt 0:00:01] White really could win this.   Weighted Error Value: White=0.15 (very precise) /Black=0.27 (precise)   Loses game:     	---       	Black=3      Missed win:     	White=2     	---        Mistake:       	White=1     	Black=5      Inaccurate:     	White=3     	Black=1      OK:         	White=24    	Black=23     Best:        	White=7     	Black=9      Strong:       	White=5     	Black=1      Brilliant:      	White=1     	---} 1/2-1/2

[Event "GCT Superbet Rapid Poland 2025"]
[Site "Warsaw"]
[Date "2025.04.26"]
[Round "2.4"]
[White "Fedoseev, Vladimir"]
[Black "Gavrilescu, David"]
[Result "1-0"]
[Annotator "TA"]
[ECO "E04"]
[WhiteElo "2739"]
[BlackElo "2554"]
[PlyCount "35"]
[EventDate "2025.04.23"]
[EventType "tourn"]
[EventCountry "POL"]
[SourceTitle "playchess.com"]
[Source "ChessBase"]
[SourceQuality "1"]
[TimeControl "1500+10"]

{[%evp 16,35,13,14,61,8,24,10,18,16,74,78,81,71,75,70,89,83,81,93,497,485]} 1. d4 {[%emt 0:00:02]} d5 {[%emt 0:00:06]} 2. c4 {[%emt 0:00:03]} e6 {[%emt 0:00:03]} 3. Nf3 {[%emt 0:00:03]} Nf6 {[%emt 0:00:05]} 4. g3 {[%emt 0:00:26]} dxc4 {[%emt 0:00:20]} 5. Bg2 {[%emt 0:00:03]} c5 {[%emt 0:00:07]} 6. O-O {[%emt 0:00:04]} Nc6 {[%emt 0:00:06]} 7. dxc5 {[%emt 0:00:03]} Qxd1 {[%emt 0:00:10]} 8. Rxd1 {[%emt 0:00:02]} Bxc5 {[%emt 0:00:04]} 9. Nbd2 {[%emt 0:00:03]} b5 {[%emt 0:00:08] E04: Open Catalan: 5 Nf3.} (9... c3 $11 10. bxc3 O-O) 10. Ng5 $1 $146 {[%emt 0:05:50][%mdl 8] White sacrificed a pawn A relevant novelty.} (10. Ne5 $14 Nxe5 11. Bxa8) (10. a4 Ba6 11. Ng5 Nd5 12. Nde4 Bb4 13. Nxf7 Kxf7 14. Ng5+ Kf6 15. Nxe6 Nce7 16. axb5 Bb7 17. Nd4 Kf7 18. Ra4 c3 19. Rd3 a5 20. bxc3 Bxc3 21. Rf3+ Kg6 22. Nc6 Bf6 23. Ne5+ {1-0 Harikrishna,P (2695)-Warmerdam,M (2646) Tata Steel-A 87th 2025 (4)}) 10... Bb7 {[%emt 0:03:15]} 11. a4 {[%emt 0:00:42] aiming for Nge4.} a6 {[%emt 0:01:22] The position is equal.} 12. Nde4 {[%emt 0:00:08]} Bb4 {[%emt 0:02:00]} (12... Be7 $11 {remains equal.}) 13. Nxf6+ {[%emt 0:02:26]} gxf6 {[%emt 0:00:03] [#]} 14. Nxf7 {[%emt 0:00:03] White is more active.} Kxf7 {[%emt 0:04:02]} 15. Rd7+ {[%emt 0:00:02] White attacks} Kg6 {[%emt 0:00:26] Strongly threatening ...Rhd8.} 16. Rxb7 {[%emt 0:00:04]} Nd4 {[%emt 0:00:05][%cal Oa8b8]} 17. Be3 {[%emt 0:00:18] This pair of bishops is nice.} e5 {[%emt 0:03:19][%mdl 8192]} (17... Nb3 $16 18. Rd1 Rad8 19. Be4+ f5) 18. axb5 {[%emt 0:00:13] Weighted Error Value: White=0.10 (very precise) /Black=0.77  Loses game:     	---       	Black=1      Mistake:       	White=1     	Black=1      OK:         	White=3     	Black=2      Best:        	White=2     	---        Brilliant:      	White=1     	---} 1-0

[Event "GCT Superbet Rapid Poland 2025"]
[Site "Warsaw"]
[Date "2025.04.27"]
[Round "4.5"]
[White "Fedoseev, Vladimir"]
[Black "Vachier-Lagrave, Maxime"]
[Result "1/2-1/2"]
[Annotator "TA"]
[ECO "D85"]
[WhiteElo "2739"]
[BlackElo "2722"]
[PlyCount "102"]
[EventDate "2025.04.23"]
[EventType "tourn"]
[EventCountry "POL"]
[SourceTitle "playchess.com"]
[Source "ChessBase"]
[SourceQuality "1"]
[TimeControl "1500+10"]

{[%evp 16,102,11,0,0,0,0,0,0,0,0,10,9,0,12,20,23,0,29,13,4,9,7,-29,-19,-21,-17,-25,-25,-27,0,-1,15,0,0,-9,22,5,37,25,69,0,18,9,15,23,22,31,41,0,0,0,8,8,8,8,8,8,8,8,8,8,8,8,8,8,8,8,8,8,12,0,0,0,0,0,0,0,0,0,0,0,0,0,0,0,0,0,0]} 1. d4 {[%emt 0:00:04]} Nf6 {[%emt 0:00:01]} 2. c4 {[%emt 0:00:04]} g6 {[%emt 0:00:02]} 3. Nc3 {[%emt 0:00:19]} d5 {[%emt 0:00:02]} 4. cxd5 {[%emt 0:00:03]} Nxd5 {[%emt 0:00:02]} 5. e4 {[%emt 0:00:03]} Nxc3 {[%emt 0:00:01]} 6. bxc3 {[%emt 0:00:03]} Bg7 {[%emt 0:00:02]} 7. Nf3 {[%emt 0:00:03]} c5 {[%emt 0:00:02]} 8. h3 {[%emt 0:00:03]} O-O {[%emt 0:00:18]} 9. Be2 {[%emt 0:00:03]} cxd4 {[%emt 0:00:14] D85: Exchange Grünfeld: Unusual White 7th moves and lines with 7 Nf3.} 10. cxd4 {[%emt 0:00:03]} Nc6 {[%emt 0:00:01][%cal Rc6d4]} 11. Be3 {[%emt 0:00:03]} Qa5+ {[%emt 0:00:05]} 12. Bd2 {[%emt 0:00:03]} Qa3 {[%emt 0:00:02]} 13. d5 {[%emt 0:00:03]} Ne5 {[%emt 0:00:06]} ({Much worse is} 13... Bxa1 14. Qxa1 Nb4 15. O-O $16) 14. O-O {[%emt 0:00:12]} Bd7 {[%emt 0:00:25] is the new trend.} 15. Rb1 {[%emt 0:00:08]} Ba4 {[%emt 0:00:08]} 16. Qe1 {[%emt 0:00:20]} Nd3 {[%emt 0:00:04]} 17. Bb4 $146 {[%emt 0:05:26]} (17. Bxd3 Qxd3 18. Bg5 Rfe8 19. Qa5 b5 20. Rbc1 h6 21. Rfe1 Rac8 22. Rxc8 Rxc8 23. Bxe7 {½-½ Giri,A (2752)-Vachier Lagrave,M (2734) Saint Louis Rapid 2023 (1)}) 17... Nxb4 {[%emt 0:00:19]} (17... Qxa2 $2 18. Bxd3 Rfe8 19. Bc3 $18) 18. Qxb4 {[%emt 0:00:02]} Qxa2 {[%emt 0:00:02] Hoping for ...a5.} (18... Qxb4 19. Rxb4 Bc2 20. e5 Rfc8) 19. Bc4 {[%emt 0:00:28] [#]} a5 $1 {[%emt 0:00:02]} 20. Bxa2 {[%emt 0:03:43]} axb4 {[%emt 0:00:01]} 21. Rxb4 {[%emt 0:00:02]} b5 {[%emt 0:01:58]} 22. e5 {[%emt 0:01:46]} Rfd8 {[%emt 0:04:14]} 23. Re1 {[%emt 0:00:59]} Bh6 {[%emt 0:02:22]} 24. g4 {[%emt 0:01:05]} Bc2 {[%emt 0:04:15]} 25. Rb2 {[%emt 0:00:15]} Ra3 {[%emt 0:00:01]} 26. Nd4 {[%emt 0:03:24]} Bd3 {[%emt 0:00:56]} 27. Nc6 {[%emt 0:00:14]} (27. Nxb5 Bxb5 28. d6 Bd7 (28... exd6 $2 29. Bxf7+ Kxf7 30. Rxb5 $19) 29. dxe7 Re8 $19) 27... Rda8 {[%emt 0:02:48]} 28. Bb1 {[%emt 0:01:40]} (28. Nxe7+ $2 {too greedy.} Kf8 29. Bb1 Kxe7 $17) (28. d6 $1 $14 Bg5 (28... Rxa2 $2 29. Rxa2 Rxa2 30. dxe7 $18) 29. f4 (29. Nxe7+ Kf8 $16) 29... Bxf4 30. d7 (30. Nxe7+ Kf8 $11)) 28... Bc4 {[%emt 0:02:07]} 29. Nxe7+ {[%emt 0:00:12]} Kf8 {[%emt 0:00:02]} 30. d6 {[%emt 0:00:11]} Rxh3 {[%emt 0:01:28]} 31. Be4 {[%emt 0:01:13]} Ra4 {[%emt 0:00:40]} 32. Kg2 {[%emt 0:00:38]} Rc3 {[%emt 0:01:56] The position is equal.} 33. f3 {[%emt 0:01:58]} Bg5 {[%emt 0:01:23]} 34. Nd5 {[%emt 0:00:46]} Bxd5 {[%emt 0:00:02]} 35. Bxd5 {[%emt 0:00:01]} Rd4 $1 $132 {[%emt 0:00:01][%mdl 2048] [#] Black puts up resistance} 36. Bxf7 {[%emt 0:01:56]} Kxf7 {[%emt 0:00:09]} (36... Rc1 37. Ree2) 37. e6+ {[%emt 0:00:01]} Ke8 {[%emt 0:00:02]} 38. Rxb5 {[%emt 0:00:23]} Rd2+ {[%emt 0:03:09]} (38... Rxd6 {simplifies} 39. Rxg5 Rd2+ 40. Kg3 Rdd3) 39. Kg3 {[%emt 0:00:04] Rb8+ would kill now. Chess con chili.} Rxd6 $1 {[%emt 0:00:01]} 40. Rxg5 $11 {[%emt 0:00:03][%mdl 4096] Endgame next Rb5 is good for White. KRR-KRR. White is a pawn up.} Rdd3 {[%emt 0:00:02]} 41. Rf1 {[%emt 0:01:06]} Ke7 {[%emt 0:00:35]} 42. Ra5 {[%emt 0:00:18]} Kxe6 {[%emt 0:00:37]} 43. Ra6+ {[%emt 0:00:01]} Kf7 {[%emt 0:00:18]} 44. Ra7+ {[%emt 0:00:07]} Kg8 {[%emt 0:00:02]} 45. Kf4 {[%emt 0:01:12]} Ra3 {[%emt 0:00:32]} 46. Re7 {[%emt 0:00:09]} h6 {[%emt 0:00:04]} 47. Kg3 {[%emt 0:00:16]} Re3 {[%emt 0:00:02]} 48. Rd7 {[%emt 0:00:05]} Red3 {[%emt 0:00:01]} 49. Re7 {[%emt 0:00:03]} Re3 {[%emt 0:00:01]} 50. Rd7 {[%emt 0:00:01]} Red3 {[%emt 0:00:01]} 51. Re7 {[%emt 0:00:01]} Re3 {[%emt 0:00:01] Weighted Error Value: White=0.07 (flawless) /Black=0.05 (flawless)   Mistake:       	White=1     	---        Inaccurate:     	White=2     	Black=5      OK:         	White=20    	Black=18     Best:        	White=2     	Black=1      Strong:       	---       	Black=3} 1/2-1/2

[Event "GCT Superbet Rapid Poland 2025"]
[Site "Warsaw"]
[Date "2025.04.27"]
[Round "6.1"]
[White "Fedoseev, Vladimir"]
[Black "Deac, Bogdan-Daniel"]
[Result "1/2-1/2"]
[Annotator "TA"]
[ECO "E06"]
[WhiteElo "2739"]
[BlackElo "2668"]
[PlyCount "123"]
[EventDate "2025.04.23"]
[EventType "tourn"]
[EventCountry "POL"]
[SourceTitle "playchess.com"]
[Source "ChessBase"]
[SourceQuality "1"]
[TimeControl "1500+10"]

{[%evp 18,123,12,0,20,0,0,0,0,0,0,-10,-9,-6,4,4,22,26,68,70,54,23,21,22,48,39,28,10,14,0,0,0,8,0,17,22,14,16,19,20,21,15,18,0,0,0,18,0,6,0,0,0,0,0,32,44,54,26,90,91,84,80,80,72,90,61,59,33,58,37,37,0,8,0,0,0,0,0,0,0,0,0,0,0,0,0,0,0,0,0,0,0,0,0,0,0,0,0,0,0,0,0,0,0,0,0,0,0]} 1. d4 {[%emt 0:00:11]} Nf6 {[%emt 0:00:01]} 2. c4 {[%emt 0:00:02]} e6 {[%emt 0:00:02]} 3. Nf3 {[%emt 0:00:03]} d5 {[%emt 0:00:02]} 4. g3 {[%emt 0:00:02]} Be7 {[%emt 0:00:02]} 5. Bg2 {[%emt 0:00:02]} O-O {[%emt 0:00:03]} 6. Nc3 {[%emt 0:00:03]} dxc4 {[%emt 0:00:02]} 7. Ne5 {[%emt 0:00:02]} c5 {[%emt 0:00:02]} 8. dxc5 {[%emt 0:00:06]} Qxd1+ {[%emt 0:00:03]} 9. Nxd1 {[%emt 0:00:03]} Bxc5 {[%emt 0:00:01]} 10. O-O {[%emt 0:00:13] White sacrificed a pawn} Nd5 {[%emt 0:00:41] Repels Nc3. E06: Closed Catalan: Early deviations.} 11. Bd2 {[%emt 0:02:09]} Nc6 {[%emt 0:01:06]} 12. Nxc4 {[%emt 0:00:06]} Rd8 {[%emt 0:01:05]} 13. Nc3 {[%emt 0:02:51][%cal Bd1c3,Bc3e4,Be4d6,Bd6b5][%mdl 32]} b6 {[%emt 0:01:43]} 14. Rfc1 $146 {[%emt 0:00:56]} (14. Ne4 Be7 15. Rac1 Bb7 {½-½ Nikolov,M (2522)-Cvitan,O (2470) Cattolica Halloween op 2021 (7)}) 14... Ba6 {[%emt 0:05:56]} 15. Ne4 {[%emt 0:02:35]} Bd4 {[%emt 0:03:15]} 16. Rab1 {[%emt 0:04:15]} Ne5 {[%emt 0:04:26]} 17. b3 {[%emt 0:00:14][%cal Bb2b3,Bb3c4][%mdl 32] and e3 should not be overlooked} Nxc4 {[%emt 0:01:35]} 18. bxc4 {[%emt 0:00:01]} Ne7 {[%emt 0:00:06]} 19. Nd6 {[%emt 0:04:07] Prevents Rac8.} Rab8 {[%emt 0:01:54]} 20. Bb4 {[%emt 0:00:02]} Bc5 {[%emt 0:03:01]} 21. Bxc5 {[%emt 0:00:01]} bxc5 {[%emt 0:00:01]} 22. Nb5 {[%emt 0:00:01]} g6 {[%emt 0:00:49]} 23. a4 {[%emt 0:03:23]} (23. Nxa7 Rxb1 24. Rxb1 Bxc4 $15) 23... Rd7 {[%emt 0:00:14]} 24. f4 {[%emt 0:00:38]} Rbd8 {[%emt 0:00:28]} 25. Kf2 {[%emt 0:00:01]} Bb7 {[%emt 0:00:03]} 26. Bxb7 {[%emt 0:00:35]} Rxb7 {[%emt 0:00:07]} 27. Rd1 {[%emt 0:00:01]} Rbd7 {[%emt 0:00:53]} 28. Rxd7 {[%emt 0:01:25]} Rxd7 $11 {[%emt 0:00:01][%mdl 4096] Endgame KRN-KRN} 29. Nc3 {[%emt 0:00:03]} Rd4 {[%emt 0:00:26]} 30. Rb8+ {[%emt 0:00:35]} Kg7 {[%emt 0:00:20]} 31. Rb7 {[%emt 0:00:01]} Rxc4 {[%emt 0:00:24]} 32. Nb5 {[%emt 0:00:01]} a6 {[%emt 0:01:06]} 33. Nd6 {[%emt 0:00:40]} Rd4 {[%emt 0:00:08]} 34. Ne8+ {[%emt 0:00:01]} Kf8 {[%emt 0:00:02]} 35. Nf6 {[%emt 0:00:00]} Kg7 {[%emt 0:00:37]} 36. Nd7 {[%emt 0:00:13]} Rb4 {[%emt 0:00:11]} 37. Ra7 {[%emt 0:00:12]} Nc6 {[%emt 0:00:09]} ({Much weaker is} 37... Rxa4 38. Nxc5 Ra5 39. Nxe6+ (39. Nxa6 Nd5 $17) 39... Kf6 40. Nc7 $16) (37... c4 $1 $11 {remains equal.}) 38. Rxa6 $16 {[%emt 0:00:05]} Nb8 {[%emt 0:00:05]} 39. Nxb8 {[%emt 0:00:24]} Rxb8 {[%emt 0:00:02] KR-KR} 40. a5 {[%emt 0:00:26]} Rb5 {[%emt 0:00:04]} 41. Ke3 {[%emt 0:00:02]} Rb3+ {[%emt 0:00:08]} 42. Ke4 {[%emt 0:00:11]} Ra3 {[%emt 0:00:23]} 43. Ra7 {[%emt 0:00:23]} h6 {[%emt 0:00:09]} 44. g4 {[%emt 0:00:45]} g5 {[%emt 0:00:12] The position is equal.} 45. f5 {[%emt 0:00:22]} Kf6 {[%emt 0:00:15]} 46. fxe6 {[%emt 0:00:09]} fxe6 {[%emt 0:00:01]} 47. a6 {[%emt 0:00:25]} Ra4+ {[%emt 0:00:07]} 48. Kf3 {[%emt 0:00:29]} Ke5 {[%emt 0:00:18]} 49. e3 {[%emt 0:00:11]} c4 {[%emt 0:00:01]} 50. Ra8 {[%emt 0:00:13]} Ra2 {[%emt 0:00:12]} 51. a7 {[%emt 0:00:17]} c3 {[%emt 0:00:01]} 52. h3 {[%emt 0:00:33]} c2 {[%emt 0:00:09]} 53. Rc8 {[%emt 0:00:01]} Rxa7 {[%emt 0:00:03]} 54. Rc5+ {[%emt 0:00:02]} Kf6 {[%emt 0:00:03]} 55. Rxc2 {[%emt 0:00:02]} Ra4 {[%emt 0:00:02]} 56. Rc7 {[%emt 0:00:07]} Rb4 {[%emt 0:00:02]} 57. Rh7 {[%emt 0:00:02]} Kg6 {[%emt 0:00:01]} 58. Re7 {[%emt 0:00:02]} Kf6 {[%emt 0:00:01]} 59. Rh7 {[%emt 0:00:02]} Kg6 {[%emt 0:00:01]} 60. Re7 {[%emt 0:00:01]} Kf6 {[%emt 0:00:01]} 61. Rh7 {[%emt 0:00:02]} Kg6 {[%emt 0:00:01]} 62. Re7 {[%emt 0:00:01] Weighted Error Value: White=0.05 (flawless) /Black=0.06 (flawless)   Mistake:       	---       	Black=1      Inaccurate:     	White=4     	Black=3      OK:         	White=30    	Black=22     Best:        	White=2     	Black=8} 1/2-1/2